[Event "Open Cappelle-la-Grande"]
[Date "2026.02.25"]
[White "Mannion, Stephen R"]
[Black "Riff, Jean-Noel"]
[WhiteElo "2202"]
[BlackElo "2399"]
[Round "8.8.16"]
[Result "1/2-1/2"]
[TimeControl "40/5400+30:1800+30"]

e4 {[%clk 1:30:58]} e5 {[%clk 1:30:55]} Nf3 {[%clk 1:31:24]} Nc6 {[%clk
1:31:22]} Bb5 {[%clk 1:31:49]} a6 {[%clk 1:31:48]} Ba4 {[%clk 1:32:14]} Nf6
{[%clk 1:32:14]} O-O {[%clk 1:32:37]} Be7 {[%clk 1:32:40]} Re1 {[%clk 1:32:59]}
b5 {[%clk 1:33:04]} Bb3 {[%clk 1:33:25]} d6 {[%clk 1:33:29]} c3 {[%clk 1:33:48]}
O-O {[%clk 1:33:47]} d4 {[%clk 1:34:14]} Bg4 {[%clk 1:33:42]} Be3 {[%clk
1:34:37]} exd4 {[%clk 1:34:03]} cxd4 {[%clk 1:34:58]} Na5 {[%clk 1:34:29]} Bc2
{[%clk 1:35:21]} Nc4 {[%clk 1:34:55]} Bc1 {[%clk 1:35:37]} c5 {[%clk 1:35:22]}
b3 {[%clk 1:32:10]} Nb6 {[%clk 1:34:40]} Nbd2 {[%clk 1:32:20]} Rc8 {[%clk
1:35:04]} h3 {[%clk 1:30:25]} Bxf3 {[%clk 1:30:52]} Nxf3 {[%clk 1:30:00]} Nfd7
{[%clk 1:30:41]} dxc5 {[%clk 1:10:06]} Nxc5 {[%clk 1:19:37]} Bb2 {[%clk
1:06:35]} Bf6 {[%clk 1:18:48]} Bxf6 {[%clk 0:59:02]} Qxf6 {[%clk 1:18:29]} e5
{[%clk 0:59:07]} dxe5 {[%clk 1:18:47]} Nxe5 {[%clk 0:59:13]} Rfe8 {[%clk
1:07:25]} Qh5 {[%clk 0:55:18]} g6 {[%clk 1:07:07]} Qf3 {[%clk 0:55:41]} Qxf3
{[%clk 1:03:29]} Nxf3 {[%clk 0:56:01]} Nd5 {[%clk 1:03:55]} a3 {[%clk 0:38:13]}
Rxe1+ {[%clk 0:59:16]} Rxe1 {[%clk 0:37:11]} b4 {[%clk 0:59:26]} Ra1 {[%clk
0:19:30]} bxa3 {[%clk 0:36:47]} Rxa3 {[%clk 0:19:56]} Nb4 {[%clk 0:37:12]} Bd1
{[%clk 0:20:13]} Ncd3 {[%clk 0:34:59]} Ra1 {[%clk 0:18:44]} Rc3 {[%clk 0:34:48]}
Nd4 {[%clk 0:16:20]} Nc5 {[%clk 0:33:55]} Be2 {[%clk 0:15:09]} Nxb3 {[%clk
0:30:37]} Nxb3 {[%clk 0:15:15]} Rxb3 {[%clk 0:31:04]} Bxa6 {[%clk 0:15:34]} Nxa6
{[%clk 0:31:30]} Rxa6 {[%clk 0:15:59]}

[Variant "Standard"]
[Site "Europe Echecs"]

[Event "Open Cappelle-la-Grande"]
[Date "2026.02.26"]
[White "Can, Emre"]
[Black "Pranav Anand"]
[WhiteElo "2541"]
[BlackElo "2606"]
[Round "9.9.1"]
[Result "1/2-1/2"]
[TimeControl "40/5400+30:1800+30"]

e4 {[%clk 1:30:54]} c5 {[%clk 1:30:53]} Nf3 {[%clk 1:31:09]} d6 {[%clk 1:31:17]}
Bb5+ {[%clk 1:31:00]} Nd7 {[%clk 1:31:41]} O-O {[%clk 1:31:11]} a6 {[%clk
1:32:07]} Bd3 {[%clk 1:31:32]} Ngf6 {[%clk 1:32:23]} Re1 {[%clk 1:31:30]} b5
{[%clk 1:32:48]} a4 {[%clk 1:30:24]} b4 {[%clk 1:32:59]} c3 {[%clk 1:29:55]} Bb7
{[%clk 1:33:13]} Bc2 {[%clk 1:29:51]} Rc8 {[%clk 1:33:10]} a5 {[%clk 1:25:14]}
e6 {[%clk 1:29:12]} d3 {[%clk 1:25:21]} bxc3 {[%clk 1:26:13]} bxc3 {[%clk
1:24:52]} Be7 {[%clk 1:26:10]} Nbd2 {[%clk 1:24:18]} Qc7 {[%clk 1:20:23]} Nf1
{[%clk 1:23:33]} O-O {[%clk 1:20:32]} Bf4 {[%clk 1:17:57]} h6 {[%clk 1:14:22]}
h3 {[%clk 1:17:04]} Rfe8 {[%clk 1:12:15]} N1d2 {[%clk 1:09:56]} Bf8 {[%clk
1:08:19]} Nc4 {[%clk 1:10:04]} Bc6 {[%clk 1:05:13]} Qd2 {[%clk 1:07:21]} e5
{[%clk 0:55:27]} Bh2 {[%clk 1:05:25]} Rb8 {[%clk 0:55:35]} Qd1 {[%clk 0:59:47]}
g6 {[%clk 0:52:30]} Bb3 {[%clk 0:55:18]} Bg7 {[%clk 0:50:51]} Ne3 {[%clk
0:55:28]} Nf8 {[%clk 0:50:28]} Nd2 {[%clk 0:41:14]} Ne6 {[%clk 0:48:56]} Ndc4
{[%clk 0:39:58]} Nd7 {[%clk 0:45:33]} Ba4 {[%clk 0:36:46]} Nf4 {[%clk 0:40:53]}
Bxc6 {[%clk 0:32:13]} Qxc6 {[%clk 0:41:17]} Bxf4 {[%clk 0:32:04]} exf4 {[%clk
0:41:42]} Nd5 {[%clk 0:32:24]} Nf6 {[%clk 0:32:33]} Ncb6 {[%clk 0:30:01]} Nxd5
{[%clk 0:31:50]} Nxd5 {[%clk 0:30:10]} Rb2 {[%clk 0:21:22]} Qc1 {[%clk 0:13:45]}
Rb3 {[%clk 0:20:57]} Qxf4 {[%clk 0:13:39]} Rxc3 {[%clk 0:18:50]} Nxc3 {[%clk
0:08:59]} Bxc3 {[%clk 0:18:57]} Qxh6 {[%clk 0:09:17]} Bxa1 {[%clk 0:18:09]} Rxa1
{[%clk 0:09:33]} d5 {[%clk 0:18:36]} exd5 {[%clk 0:04:43]} Qxd5 {[%clk 0:19:00]}
Qc1 {[%clk 0:04:54]} Qd4 {[%clk 0:17:14]} Ra2 {[%clk 0:04:09]} Qxd3 {[%clk
0:16:27]} Rc2 {[%clk 0:02:10]} Re1+ {[%clk 0:14:23]} Qxe1 {[%clk 0:02:33]} Qxc2
{[%clk 0:14:51]} Qe8+ {[%clk 0:29:44]} Kg7 {[%clk 0:45:16]} Qe5+ {[%clk
0:30:03]} Kg8 {[%clk 0:45:42]} Qe8+ {[%clk 0:29:57]}

[Variant "Standard"]
[Site "Europe Echecs"]

[Event "Open Cappelle-la-Grande"]
[Date "2026.02.26"]
[White "Rohith Krishna S"]
[Black "Pranesh M"]
[WhiteElo "2484"]
[BlackElo "2627"]
[Round "9.9.2"]
[Result "1/2-1/2"]
[TimeControl "40/5400+30:1800+30"]

d4 {[%clk 1:30:47]} d5 {[%clk 1:30:54]} c4 {[%clk 1:31:12]} e6 {[%clk 1:31:20]}
Nc3 {[%clk 1:31:33]} h6 {[%clk 1:31:36]} Nf3 {[%clk 1:31:23]} Nf6 {[%clk
1:31:58]} Bf4 {[%clk 1:31:38]} Bd6 {[%clk 1:32:10]} Bxd6 {[%clk 1:31:57]} Qxd6
{[%clk 1:32:38]} e3 {[%clk 1:32:19]} O-O {[%clk 1:32:55]} Rc1 {[%clk 1:32:38]}
a6 {[%clk 1:33:11]} cxd5 {[%clk 1:33:01]} exd5 {[%clk 1:33:30]} Qb3 {[%clk
1:33:22]} Nc6 {[%clk 1:32:01]} Be2 {[%clk 1:31:04]} Bf5 {[%clk 1:25:40]} O-O
{[%clk 1:30:42]} b5 {[%clk 1:18:50]} Qd1 {[%clk 1:19:00]} Nd8 {[%clk 1:16:44]}
Bd3 {[%clk 1:18:46]} Bxd3 {[%clk 1:11:29]} Qxd3 {[%clk 1:19:07]} Ne6 {[%clk
1:10:32]} Rc2 {[%clk 1:16:01]} Rfc8 {[%clk 1:05:56]} Rfc1 {[%clk 1:15:25]} c5
{[%clk 1:04:07]} dxc5 {[%clk 1:15:43]} Rxc5 {[%clk 1:02:39]} Ne2 {[%clk
1:06:59]} Rac8 {[%clk 1:02:09]} h3 {[%clk 1:03:59]} R5c7 {[%clk 0:58:09]} Nfd4
{[%clk 0:59:01]} Nxd4 {[%clk 0:53:20]} Nxd4 {[%clk 0:58:42]} g6 {[%clk 0:53:32]}
Ne2 {[%clk 0:56:18]} Rxc2 {[%clk 0:49:08]} Rxc2 {[%clk 0:56:33]} Rxc2 {[%clk
0:49:18]} Qxc2 {[%clk 0:56:53]} Qb4 {[%clk 0:49:39]} Qc3 {[%clk 0:52:30]} Qxc3
{[%clk 0:48:37]}

[Variant "Standard"]
[Site "Europe Echecs"]

[Event "Open Cappelle-la-Grande"]
[Date "2026.02.26"]
[White "Razafindratsima, Timothe"]
[Black "Bacrot, Alexandre"]
[WhiteElo "2504"]
[BlackElo "2457"]
[Round "9.9.3"]
[Result "1/2-1/2"]
[TimeControl "40/5400+30:1800+30"]

e4 {[%clk 1:29:56]} d6 {[%clk 1:30:52]} d4 {[%clk 1:30:15]} Nf6 {[%clk 1:31:17]}
Nc3 {[%clk 1:30:42]} g6 {[%clk 1:31:43]} Bf4 {[%clk 1:31:01]} Bg7 {[%clk
1:32:07]} Qd2 {[%clk 1:31:25]} c6 {[%clk 1:32:35]} Nf3 {[%clk 1:31:05]} O-O
{[%clk 1:32:59]} Bh6 {[%clk 1:31:32]} d5 {[%clk 1:33:25]} Bxg7 {[%clk 1:31:55]}
Kxg7 {[%clk 1:33:49]} e5 {[%clk 1:32:23]} Ne4 {[%clk 1:34:14]} Nxe4 {[%clk
1:32:13]} dxe4 {[%clk 1:34:39]} Ng5 {[%clk 1:32:38]} c5 {[%clk 1:35:08]} d5
{[%clk 1:33:04]} Bf5 {[%clk 1:35:35]} e6 {[%clk 1:32:54]} fxe6 {[%clk 1:36:00]}
g4 {[%clk 1:33:20]} Bxg4 {[%clk 1:36:25]} Rg1 {[%clk 1:33:48]} Bf5 {[%clk
1:31:27]} Qc3+ {[%clk 1:33:39]} Rf6 {[%clk 1:13:17]} Bh3 {[%clk 1:16:06]} h6
{[%clk 0:56:56]} Bxf5 {[%clk 1:04:22]} hxg5 {[%clk 0:57:03]} h4 {[%clk 1:04:49]}
exf5 {[%clk 0:52:02]} hxg5 {[%clk 1:05:12]} Qd6 {[%clk 0:51:38]} Rh1 {[%clk
0:55:27]} Nd7 {[%clk 0:51:28]} gxf6+ {[%clk 0:50:23]} Qxf6 {[%clk 0:51:27]} Qb3
{[%clk 0:48:35]} Qb6 {[%clk 0:49:07]} Qc3+ {[%clk 0:48:46]} Qf6 {[%clk 0:49:33]}
Qb3 {[%clk 0:45:57]}

[Variant "Standard"]
[Site "Europe Echecs"]

[Event "Open Cappelle-la-Grande"]
[Date "2026.02.26"]
[White "Lamaze, Simon"]
[Black "Degraeve, Jean-Marc"]
[WhiteElo "2450"]
[BlackElo "2503"]
[Round "9.9.4"]
[Result "1/2-1/2"]
[TimeControl "40/5400+30:1800+30"]

d4 {[%clk 1:30:57]} Nf6 {[%clk 1:30:45]} c4 {[%clk 1:31:22]} g6 {[%clk 1:31:08]}
Nc3 {[%clk 1:31:48]} Bg7 {[%clk 1:31:31]} e4 {[%clk 1:32:13]} d6 {[%clk
1:31:56]} Be2 {[%clk 1:32:40]} O-O {[%clk 1:32:07]} Be3 {[%clk 1:33:05]} c5
{[%clk 1:31:22]} d5 {[%clk 1:31:16]} e6 {[%clk 1:31:31]} Nf3 {[%clk 1:31:38]}
exd5 {[%clk 1:31:12]} cxd5 {[%clk 1:32:01]} b5 {[%clk 1:30:43]} e5 {[%clk
1:32:25]} dxe5 {[%clk 1:31:05]} Bxc5 {[%clk 1:32:27]} Re8 {[%clk 1:31:29]} Bxb5
{[%clk 1:32:46]} Bd7 {[%clk 1:31:35]} Be2 {[%clk 1:30:55]} Bg4 {[%clk 1:31:50]}
Be3 {[%clk 1:23:38]} e4 {[%clk 1:24:38]} Nd4 {[%clk 1:20:59]} Bxe2 {[%clk
1:25:00]} Ndxe2 {[%clk 1:21:24]} Nbd7 {[%clk 1:25:23]} O-O {[%clk 1:18:42]} Nb6
{[%clk 1:09:32]} Nf4 {[%clk 1:12:22]} Qd6 {[%clk 0:57:27]} Rc1 {[%clk 1:07:01]}
Qe5 {[%clk 0:54:52]} g3 {[%clk 0:54:10]} Rad8 {[%clk 0:54:08]} Qe2 {[%clk
0:52:48]} Nfxd5 {[%clk 0:46:09]} Ncxd5 {[%clk 0:52:54]} Nxd5 {[%clk 0:46:32]}
Nxd5 {[%clk 0:53:11]} Qxd5 {[%clk 0:46:56]} b3 {[%clk 0:53:33]} Bd4 {[%clk
0:45:18]} Rfd1 {[%clk 0:52:16]} Qe5 {[%clk 0:45:24]} Kg2 {[%clk 0:50:58]} Bxe3
{[%clk 0:37:24]} Qxe3 {[%clk 0:51:12]} Qb2 {[%clk 0:37:38]} Rxd8 {[%clk
0:50:53]} Rxd8 {[%clk 0:38:07]} Rc7 {[%clk 0:51:13]} Qxa2 {[%clk 0:37:38]} Rxa7
{[%clk 0:51:35]} Qc2 {[%clk 0:36:59]} Ra4 {[%clk 0:51:08]} Re8 {[%clk 0:36:28]}
Rc4 {[%clk 0:48:52]} Qb1 {[%clk 0:34:01]} b4 {[%clk 0:47:58]} h5 {[%clk
0:28:38]} h4 {[%clk 0:47:50]} Kh7 {[%clk 0:27:53]} Rd4 {[%clk 0:42:01]} Kg8
{[%clk 0:24:10]} g4 {[%clk 0:34:59]} hxg4 {[%clk 0:24:30]} h5 {[%clk 0:35:26]}
Qa2 {[%clk 0:14:35]} hxg6 {[%clk 0:33:50]} fxg6 {[%clk 0:14:59]} Rd7 {[%clk
0:31:44]} Qe6 {[%clk 0:13:16]} Qd4 {[%clk 0:31:30]} Qe5 {[%clk 0:11:30]} Qc4+
{[%clk 0:28:06]} Qe6 {[%clk 0:10:46]} Qxe6+ {[%clk 0:24:59]} Rxe6 {[%clk
0:10:51]} b5 {[%clk 0:25:26]} Kf8 {[%clk 0:10:29]} Ra7 {[%clk 0:25:24]} Rb6
{[%clk 0:09:16]} Ra5 {[%clk 0:25:47]} Ke7 {[%clk 0:08:15]} Kg3 {[%clk 0:25:37]}
Kd6 {[%clk 0:06:11]} Kxg4 {[%clk 0:25:33]} Kc5 {[%clk 0:06:35]} Ra4 {[%clk
0:25:45]} Rf6 {[%clk 0:06:36]} Rxe4 {[%clk 0:25:58]} Rxf2 {[%clk 0:07:01]} Kg5
{[%clk 0:26:22]}

[Variant "Standard"]
[Site "Europe Echecs"]

[Event "Open Cappelle-la-Grande"]
[Date "2026.02.26"]
[White "Eugene, Floryan"]
[Black "Cheng, Bobby"]
[WhiteElo "2478"]
[BlackElo "2566"]
[Round "9.9.5"]
[Result "1/2-1/2"]
[TimeControl "40/5400+30:1800+30"]

e4 {[%clk 1:30:56]} e5 {[%clk 1:30:58]} Nf3 {[%clk 1:31:05]} Nf6 {[%clk
1:31:25]} Nxe5 {[%clk 1:29:43]} d6 {[%clk 1:31:52]} Nd3 {[%clk 1:29:56]} Nxe4
{[%clk 1:32:18]} Qe2 {[%clk 1:30:20]} Qe7 {[%clk 1:32:45]} Nf4 {[%clk 1:30:42]}
Nc6 {[%clk 1:33:10]} Nd5 {[%clk 1:30:22]} Nd4 {[%clk 1:33:35]} Nxe7 {[%clk
1:30:36]} Nxe2 {[%clk 1:34:01]} Bxe2 {[%clk 1:24:06]} Bxe7 {[%clk 1:34:23]} d3
{[%clk 1:23:42]} Nf6 {[%clk 1:34:36]} Nc3 {[%clk 1:20:51]} c6 {[%clk 1:34:01]}
Bf4 {[%clk 1:19:00]} d5 {[%clk 1:33:32]} O-O-O {[%clk 1:18:00]} O-O {[%clk
1:33:48]} d4 {[%clk 1:16:51]} Bb4 {[%clk 1:29:43]} Bd3 {[%clk 1:05:24]} Bxc3
{[%clk 1:26:12]} bxc3 {[%clk 1:05:50]} Ne4 {[%clk 1:26:39]} Bxe4 {[%clk
1:06:11]} dxe4 {[%clk 1:27:06]} c4 {[%clk 1:06:29]} Bf5 {[%clk 1:11:30]} Rhe1
{[%clk 1:05:44]} Rac8 {[%clk 1:09:09]} Re3 {[%clk 1:05:16]} Rfd8 {[%clk
1:06:18]} Ra3 {[%clk 1:03:29]} Be6 {[%clk 0:54:13]} c5 {[%clk 0:58:34]} Ra8
{[%clk 0:44:29]} Kb2 {[%clk 0:46:47]}

[Variant "Standard"]
[Site "Europe Echecs"]

[Event "Open Cappelle-la-Grande"]
[Date "2026.02.26"]
[White "Zylka, Stanislaw"]
[Black "Raja Rithvik R"]
[WhiteElo "2347"]
[BlackElo "2535"]
[Round "9.9.6"]
[Result "0-1"]
[TimeControl "40/5400+30:1800+30"]

d4 {[%clk 1:30:30]} Nf6 {[%clk 1:30:49]} c4 {[%clk 1:30:54]} e6 {[%clk 1:31:12]}
Nf3 {[%clk 1:31:14]} d5 {[%clk 1:31:31]} Nc3 {[%clk 1:31:13]} Bb4 {[%clk
1:31:18]} Qa4+ {[%clk 1:31:26]} Nc6 {[%clk 1:31:43]} a3 {[%clk 1:31:41]} Bxc3+
{[%clk 1:31:58]} bxc3 {[%clk 1:32:05]} Bd7 {[%clk 1:31:08]} Qc2 {[%clk 1:26:58]}
Na5 {[%clk 1:31:23]} cxd5 {[%clk 1:21:50]} exd5 {[%clk 1:31:25]} Bg5 {[%clk
1:21:48]} h6 {[%clk 1:31:49]} Bh4 {[%clk 1:22:12]} g5 {[%clk 1:32:03]} Bg3
{[%clk 1:22:36]} Ne4 {[%clk 1:31:49]} e3 {[%clk 1:22:44]} Bf5 {[%clk 1:12:26]}
Bd3 {[%clk 1:18:38]} c6 {[%clk 0:45:42]} Nd2 {[%clk 1:10:32]} Qe7 {[%clk
0:42:04]} Bxe4 {[%clk 1:03:13]} Bxe4 {[%clk 0:41:46]} Nxe4 {[%clk 1:03:34]} Qxe4
{[%clk 0:41:41]} Qxe4+ {[%clk 1:03:08]} dxe4 {[%clk 0:42:06]} h4 {[%clk
1:02:11]} Ke7 {[%clk 0:41:52]} a4 {[%clk 1:01:52]} Ke6 {[%clk 0:36:47]} Ke2
{[%clk 1:00:55]} Nc4 {[%clk 0:34:21]} a5 {[%clk 0:46:08]} Kd5 {[%clk 0:25:41]}
Ra4 {[%clk 0:39:52]} b5 {[%clk 0:23:05]} axb6 {[%clk 0:40:09]} axb6 {[%clk
0:23:32]} Rha1 {[%clk 0:40:17]} Ra5 {[%clk 0:23:55]} h5 {[%clk 0:23:01]} Rha8
{[%clk 0:23:19]} Rxa5+ {[%clk 0:23:24]} Rxa5 {[%clk 0:22:00]} Rxa5+ {[%clk
0:22:30]} bxa5 {[%clk 0:22:24]} Kd1 {[%clk 0:22:48]} a4 {[%clk 0:20:53]} Kc2
{[%clk 0:22:07]} Ke6 {[%clk 0:21:21]} Bc7 {[%clk 0:20:32]} Kf5 {[%clk 0:21:10]}
Bd8 {[%clk 0:20:48]} Kg4 {[%clk 0:21:08]} f3+ {[%clk 0:21:06]} exf3 {[%clk
0:19:14]} gxf3+ {[%clk 0:21:31]} Kxh5 {[%clk 0:18:02]} e4 {[%clk 0:21:46]} g4
{[%clk 0:16:44]} fxg4+ {[%clk 0:21:52]} Kxg4 {[%clk 0:17:12]} d5 {[%clk
0:19:46]} cxd5 {[%clk 0:17:37]} exd5 {[%clk 0:20:10]} f5 {[%clk 0:07:16]}

[Variant "Standard"]
[Site "Europe Echecs"]

[Event "Open Cappelle-la-Grande"]
[Date "2026.02.26"]
[White "Bujisho, Benjamin"]
[Black "Ruzhansky, Elias"]
[WhiteElo "2316"]
[BlackElo "2462"]
[Round "9.9.7"]
[Result "1-0"]
[TimeControl "40/5400+30:1800+30"]

e4 {[%clk 1:30:31]} c5 {[%clk 1:30:45]} c3 {[%clk 1:27:20]} Nf6 {[%clk 1:30:11]}
e5 {[%clk 1:27:41]} Nd5 {[%clk 1:30:30]} d4 {[%clk 1:28:01]} cxd4 {[%clk
1:30:31]} Nf3 {[%clk 1:27:28]} d6 {[%clk 1:29:51]} cxd4 {[%clk 1:27:35]} Nc6
{[%clk 1:29:59]} Bc4 {[%clk 1:27:12]} Nb6 {[%clk 1:29:49]} Bb5 {[%clk 1:27:16]}
Bd7 {[%clk 1:29:48]} Nc3 {[%clk 1:27:01]} dxe5 {[%clk 1:29:42]} dxe5 {[%clk
1:24:48]} g6 {[%clk 1:29:56]} O-O {[%clk 1:23:48]} Bg7 {[%clk 1:30:09]} Qe2
{[%clk 1:15:49]} O-O {[%clk 1:29:28]} h3 {[%clk 1:08:46]} Qc7 {[%clk 1:25:23]}
Bf4 {[%clk 1:05:57]} a6 {[%clk 1:24:05]} Bd3 {[%clk 1:03:14]} Be6 {[%clk
1:23:55]} Rfe1 {[%clk 0:58:32]} Nb4 {[%clk 1:12:19]} Be4 {[%clk 0:56:10]} Rad8
{[%clk 0:50:06]} Ng5 {[%clk 0:47:48]} N4d5 {[%clk 0:29:55]} Nxe6 {[%clk
0:44:38]} fxe6 {[%clk 0:30:20]} Bg3 {[%clk 0:43:38]} Qc4 {[%clk 0:22:19]} Nxd5
{[%clk 0:41:37]} exd5 {[%clk 0:22:31]} Bd3 {[%clk 0:42:05]} Qa4 {[%clk 0:19:43]}
h4 {[%clk 0:39:01]} Nd7 {[%clk 0:19:54]} h5 {[%clk 0:37:13]} g5 {[%clk 0:20:18]}
Rac1 {[%clk 0:32:08]} Rc8 {[%clk 0:16:19]} b3 {[%clk 0:29:16]} Qa5 {[%clk
0:15:32]} Rxc8 {[%clk 0:22:55]} Rxc8 {[%clk 0:15:54]} Rd1 {[%clk 0:23:02]} e6
{[%clk 0:12:29]} Qg4 {[%clk 0:20:29]} Nf8 {[%clk 0:12:48]} Qxg5 {[%clk 0:20:44]}
h6 {[%clk 0:13:10]} Qd2 {[%clk 0:17:52]} Qxd2 {[%clk 0:12:51]} Rxd2 {[%clk
0:18:19]} Rc1+ {[%clk 0:13:04]} Kh2 {[%clk 0:18:23]} Nd7 {[%clk 0:11:38]} f4
{[%clk 0:18:41]} Bf8 {[%clk 0:09:23]} f5 {[%clk 0:15:52]} Bb4 {[%clk 0:08:35]}
Rc2 {[%clk 0:06:02]} Rxc2 {[%clk 0:01:26]} Bxc2 {[%clk 0:06:24]} Bc3 {[%clk
0:00:56]} fxe6 {[%clk 0:06:35]} Nxe5 {[%clk 0:01:02]} Bg6 {[%clk 0:04:03]} Nc6
{[%clk 0:00:45]} Bd6 {[%clk 0:02:23]} Bf6 {[%clk 0:00:54]} Kg3 {[%clk 0:00:42]}
Kg7 {[%clk 0:29:25]} Kf4 {[%clk 0:23:37]} Bg5+ {[%clk 0:28:05]} Kf5 {[%clk
0:19:59]} Ne7+ {[%clk 0:18:48]} Bxe7 {[%clk 0:19:05]} Bxe7 {[%clk 0:19:12]} Ke5
{[%clk 0:19:33]} Ba3 {[%clk 0:12:12]} Be8 {[%clk 0:17:54]} Kf8 {[%clk 0:09:34]}
Bd7 {[%clk 0:16:49]} a5 {[%clk 0:09:42]} Kxd5 {[%clk 0:16:00]} Ke7 {[%clk
0:09:50]} Bc8 {[%clk 0:14:22]} b6 {[%clk 0:10:11]} Ba6 {[%clk 0:13:39]} Bb2
{[%clk 0:09:35]} Be2 {[%clk 0:13:24]} Bf6 {[%clk 0:07:18]} Bg4 {[%clk 0:12:59]}
Bb2 {[%clk 0:05:07]} Kc6 {[%clk 0:13:07]} Bd4 {[%clk 0:05:30]} Bf5 {[%clk
0:10:24]} Bf2 {[%clk 0:04:12]} g4 {[%clk 0:10:29]} Be3 {[%clk 0:04:22]} g5
{[%clk 0:09:51]} Bxg5 {[%clk 0:03:05]} Kxb6 {[%clk 0:09:40]} Bd2 {[%clk
0:03:29]} a3 {[%clk 0:08:57]} Kd6 {[%clk 0:03:19]} Kb5 {[%clk 0:09:03]} Be1
{[%clk 0:02:47]} Ka4 {[%clk 0:08:56]} Bd2 {[%clk 0:03:04]} Bh3 {[%clk 0:06:47]}
Be1 {[%clk 0:03:23]} Kb5 {[%clk 0:06:49]} Bd2 {[%clk 0:03:45]} Kb6 {[%clk
0:06:42]} Bc3 {[%clk 0:03:50]} Kb7 {[%clk 0:06:48]} Bd2 {[%clk 0:03:25]} Kc8
{[%clk 0:06:47]} Ke7 {[%clk 0:02:36]} Kc7 {[%clk 0:07:05]} Bc1 {[%clk 0:02:45]}
Kb6 {[%clk 0:06:42]} Bd2 {[%clk 0:03:01]} Kc5 {[%clk 0:05:39]} Bc1 {[%clk
0:03:13]} Kb5 {[%clk 0:06:01]} Bd2 {[%clk 0:03:37]} b4 {[%clk 0:06:23]} axb4
{[%clk 0:03:57]} axb4 {[%clk 0:06:51]} Kd6 {[%clk 0:04:14]} Kc4 {[%clk 0:06:21]}
Bg5 {[%clk 0:04:13]} Kd4 {[%clk 0:06:24]} Bd2 {[%clk 0:04:01]} b5 {[%clk
0:06:35]} Be1 {[%clk 0:02:14]} Ke4 {[%clk 0:06:34]} Bf2 {[%clk 0:02:32]} Kf5
{[%clk 0:06:41]} Ke7 {[%clk 0:02:51]} Ke5 {[%clk 0:06:57]} Be3 {[%clk 0:02:48]}
Kd5 {[%clk 0:06:59]} Bf2 {[%clk 0:03:07]} Kc6 {[%clk 0:06:40]} Be3 {[%clk
0:03:27]} b6 {[%clk 0:05:59]} Kd8 {[%clk 0:00:51]} Kd6 {[%clk 0:04:23]} Bf4+
{[%clk 0:01:03]} Kd5 {[%clk 0:04:48]} Be3 {[%clk 0:00:58]} b7 {[%clk 0:04:28]}
Ba7 {[%clk 0:01:03]} Ke5 {[%clk 0:04:34]} Ke7 {[%clk 0:01:15]} Kf5 {[%clk
0:04:55]} Bb8 {[%clk 0:01:28]} Kg6 {[%clk 0:05:17]} Bf4 {[%clk 0:01:53]} Kg7
{[%clk 0:05:32]} Ke8 {[%clk 0:01:16]} Kf6 {[%clk 0:05:34]} Bg3 {[%clk 0:00:39]}
e7 {[%clk 0:05:02]} Bh4+ {[%clk 0:00:34]} Ke6 {[%clk 0:05:26]} Bg3 {[%clk
0:00:59]} Bg2 {[%clk 0:05:50]}

[Variant "Standard"]
[Site "Europe Echecs"]

[Event "Open Cappelle-la-Grande"]
[Date "2026.02.26"]
[White "Orieux, Etienne"]
[Black "Carnicelli, Valerio"]
[WhiteElo "2272"]
[BlackElo "2438"]
[Round "9.9.8"]
[Result "1/2-1/2"]
[TimeControl "40/5400+30:1800+30"]

e4 {[%clk 1:30:57]} g6 {[%clk 1:30:57]} d4 {[%clk 1:31:18]} Bg7 {[%clk 1:31:24]}
Nf3 {[%clk 1:31:41]} d6 {[%clk 1:31:49]} Bd3 {[%clk 1:31:56]} c5 {[%clk
1:24:30]} c3 {[%clk 1:31:15]} cxd4 {[%clk 1:17:45]} cxd4 {[%clk 1:31:20]} Nc6
{[%clk 1:17:38]} h3 {[%clk 1:26:36]} Nf6 {[%clk 1:13:27]} Nc3 {[%clk 1:25:56]}
O-O {[%clk 1:13:39]} O-O {[%clk 1:25:48]} a6 {[%clk 1:10:52]} Be3 {[%clk
1:18:19]} Nd7 {[%clk 1:07:18]} d5 {[%clk 1:13:59]} Nce5 {[%clk 1:03:54]} Nxe5
{[%clk 1:13:44]} Bxe5 {[%clk 1:01:49]} Rc1 {[%clk 1:09:16]} b5 {[%clk 1:00:08]}
b4 {[%clk 1:00:36]} Nb6 {[%clk 0:51:28]} Ne2 {[%clk 1:00:13]} Bd7 {[%clk
0:46:16]} Nd4 {[%clk 0:59:33]} Rc8 {[%clk 0:41:43]} Rxc8 {[%clk 0:51:51]} Qxc8
{[%clk 0:42:05]} Nf3 {[%clk 0:46:07]} Nc4 {[%clk 0:40:04]} Bh6 {[%clk 0:46:07]}
Re8 {[%clk 0:34:05]} Nxe5 {[%clk 0:45:33]} Nxe5 {[%clk 0:34:11]} Be2 {[%clk
0:36:16]} Qc3 {[%clk 0:30:53]} Qd2 {[%clk 0:35:06]} Qxd2 {[%clk 0:23:12]} Bxd2
{[%clk 0:35:29]} Rc8 {[%clk 0:23:34]} Rc1 {[%clk 0:35:46]} Nc4 {[%clk 0:23:56]}
Bc3 {[%clk 0:28:52]} g5 {[%clk 0:19:15]} Bd4 {[%clk 0:26:08]} f6 {[%clk
0:16:42]} a4 {[%clk 0:24:45]}

[Variant "Standard"]
[Site "Europe Echecs"]

[Event "Open Cappelle-la-Grande"]
[Date "2026.02.26"]
[White "Poetsch, Hagen"]
[Black "Andersen, Gunnar"]
[WhiteElo "2433"]
[BlackElo "2254"]
[Round "9.9.9"]
[Result "1-0"]
[TimeControl "40/5400+30:1800+30"]

e4 {[%clk 1:30:58]} c5 {[%clk 1:29:20]} Nf3 {[%clk 1:31:07]} e6 {[%clk 1:29:42]}
d4 {[%clk 1:31:33]} cxd4 {[%clk 1:30:07]} Nxd4 {[%clk 1:31:58]} Nf6 {[%clk
1:30:32]} Nc3 {[%clk 1:32:22]} Nc6 {[%clk 1:31:00]} Nxc6 {[%clk 1:30:28]} bxc6
{[%clk 1:30:57]} e5 {[%clk 1:30:52]} Nd5 {[%clk 1:31:25]} Ne4 {[%clk 1:31:15]}
c5 {[%clk 1:31:52]} Bd3 {[%clk 1:26:46]} Qc7 {[%clk 1:30:18]} c4 {[%clk
1:23:55]} Nb4 {[%clk 1:30:34]} Bf4 {[%clk 1:23:54]} Nxd3+ {[%clk 1:24:04]} Qxd3
{[%clk 1:23:36]} f5 {[%clk 1:24:18]} Nd6+ {[%clk 1:15:19]} Bxd6 {[%clk 1:24:41]}
Qxd6 {[%clk 1:05:39]} Qxd6 {[%clk 1:24:56]} exd6 {[%clk 1:06:05]} Bb7 {[%clk
1:24:26]} f3 {[%clk 1:00:02]} g5 {[%clk 1:21:10]} Be5 {[%clk 0:59:36]} Rg8
{[%clk 1:20:31]} Kf2 {[%clk 0:58:18]} g4 {[%clk 1:17:11]} h3 {[%clk 0:48:25]}
gxf3 {[%clk 1:16:50]} gxf3 {[%clk 0:48:50]} Kf7 {[%clk 1:15:50]} Rag1 {[%clk
0:46:20]} Bc6 {[%clk 1:14:47]} h4 {[%clk 0:39:53]} h5 {[%clk 1:08:19]} Bf4
{[%clk 0:33:00]} a5 {[%clk 1:06:33]} Bd2 {[%clk 0:29:26]} e5 {[%clk 1:03:18]}
Rxg8 {[%clk 0:29:09]} Rxg8 {[%clk 1:03:38]} Bxa5 {[%clk 0:27:44]} e4 {[%clk
1:01:32]} fxe4 {[%clk 0:24:07]} fxe4 {[%clk 1:00:44]} Rh3 {[%clk 0:23:12]} Ra8
{[%clk 0:58:38]} Bc3 {[%clk 0:23:07]} Rxa2 {[%clk 0:55:02]} Rg3 {[%clk 0:23:29]}
Ra4 {[%clk 0:54:32]} Rg7+ {[%clk 0:22:35]} Ke6 {[%clk 0:54:04]} Rg6+ {[%clk
0:22:55]} Kf5 {[%clk 0:54:02]} Rg5+ {[%clk 0:22:00]} Ke6 {[%clk 0:54:29]} Rg6+
{[%clk 0:21:25]} Kf5 {[%clk 0:54:23]} Rg5+ {[%clk 0:21:31]} Ke6 {[%clk 0:54:46]}
Rxc5 {[%clk 0:13:29]} Kxd6 {[%clk 0:55:08]} Rxh5 {[%clk 0:11:37]} Rxc4 {[%clk
0:55:26]} Ke3 {[%clk 0:11:50]} Ke6 {[%clk 0:54:43]} Rg5 {[%clk 0:08:41]} Ra4
{[%clk 0:54:41]} Rg1 {[%clk 0:06:52]} Ra8 {[%clk 0:53:49]} h5 {[%clk 0:04:09]}
Rf8 {[%clk 0:54:10]} Rg6+ {[%clk 0:00:42]} Kd5 {[%clk 0:53:22]} Rg3 {[%clk
0:25:10]} Rf1 {[%clk 1:23:02]} Rh3 {[%clk 0:25:13]} Rd1 {[%clk 1:23:13]} Bd2
{[%clk 0:24:04]} Rb1 {[%clk 1:22:03]} h6 {[%clk 0:24:26]} Rxb2 {[%clk 1:22:28]}
Rh5+ {[%clk 0:24:15]}

[Variant "Standard"]
[Site "Europe Echecs"]